bitfinex/quotes_BTCUSD_20240723
["timestamp","ask_amount","ask_price","bid_price","bid_amount"]
[1721697222825,0.0782,67510.0,67509.0,0.1]
[1721697223236,0.0782,67510.0,67509.0,0.248128]
[1721697223445,0.0782,67510.0,67506.0,0.341267]
[1721697223446,0.0787,67511.0,67502.0,0.1]
[1721697223656,0.148139,67504.0,67499.0,0.148149]
[1721697223863,0.0787,67503.0,67500.0,0.148147]
[1721697224065,0.0813,67501.0,67500.0,0.148147]
[1721697224282,0.0813,67501.0,67500.0,0.444443]
[1721697224488,0.0813,67501.0,67500.0,0.148147]
[1721697224690,0.0813,67495.0,67489.0,0.045]
[1721697224899,0.07848942,67505.0,67493.0,0.148163]
[1721697224900,0.0641,67494.0,67493.0,0.148163]
[1721697225102,0.0641,67494.0,67493.0,0.44449]
[1721697225103,0.1454,67494.0,67493.0,0.44449]
[1721697225739,0.1454,67494.0,67493.0,0.80305987]
[1721697225950,0.1454,67494.0,67493.0,0.48949]
[1721697226155,0.1454,67494.0,67493.0,0.58949]
[1721697226370,0.1454,67494.0,67493.0,0.899817]
[1721697226578,0.1454,67494.0,67493.0,0.91705987]
[1721697226779,0.1454,67494.0,67493.0,0.90305987]
[1721697226990,0.1454,67494.0,67493.0,0.854817]
[1721697227197,0.1454,67494.0,67493.0,1.21338687]
[1721697227606,0.1454,67494.0,67493.0,1.22738687]
[1721697227824,0.002794,67507.0,67504.0,1.09921587]
[1721697227825,0.1454,67505.0,67504.0,1.09921587]
[1721697228032,0.1454,67505.0,67504.0,1.19921587]
[1721697228249,0.5547,67509.0,67508.0,0.80289487]
[1721697228450,0.4734,67509.0,67508.0,1.19915587]
[1721697229490,0.4734,67509.0,67508.0,1.49541687]
[1721697229898,0.4734,67509.0,67508.0,1.50941687]
[1721697230318,0.4734,67509.0,67508.0,1.49541687]
[1721697230528,0.4734,67509.0,67508.0,1.50941687]
[1721697230937,0.4734,67509.0,67508.0,1.49541687]
[1721697232781,0.4734,67509.0,67508.0,1.21315587]
[1721697233012,0.4734,67509.0,67508.0,1.19915587]
[1721697233573,0.0771,67510.0,67509.0,1.09913887]
[1721697233782,0.0771,67510.0,67509.0,1.19913887]
[1721697234613,0.0641,67516.0,67515.0,1.09904787]
[1721697234893,0.07348942,67523.0,67522.0,0.148099]
[1721697235091,0.0753,67522.0,67520.0,0.148102]
[1721697235286,0.0753,67522.0,67521.0,0.148102]
[1721697235541,0.0753,67522.0,67520.0,0.148104]
[1721697235773,0.062,67521.0,67519.0,0.296212]
[1721697236044,0.34020104,67528.0,67518.0,0.296213]
[1721697236045,0.0489998,67528.0,67518.0,0.296213]
[1721697236302,0.002794,67527.0,67523.0,0.148096]
[1721697236546,0.1429,67526.0,67525.0,0.148091]
[1721697236797,0.1429,67526.0,67525.0,0.444277]
[1721697237080,0.1429,67526.0,67525.0,1.19889187]
[1721697238360,0.1429,67526.0,67525.0,0.544277]
[1721697239404,0.1429,67526.0,67525.0,0.840463]
[1721697239780,0.1429,67526.0,67525.0,0.899463]
[1721697239987,0.1429,67526.0,67525.0,0.91670587]
[1721697240190,0.14895,67530.0,67529.0,0.740422]
[1721697240545,0.14895,67530.0,67529.0,0.148084]
[1721697240991,0.14895,67530.0,67529.0,0.444253]
[1721697241554,0.1406,67529.0,67525.0,0.145]
[1721697241756,0.1406,67529.0,67528.0,0.148086]
[1721697241941,0.1406,67529.0,67528.0,0.444259]
[1721697242399,0.1406,67529.0,67528.0,0.740432]
[1721697242993,0.1406,67529.0,67528.0,0.785432]
[1721697243195,0.00835,67530.0,67528.0,0.785432]
[1721697243196,0.00835,67530.0,67528.0,0.045]
[1721697243400,0.00835,67530.0,67529.0,0.785422]
[1721697243600,0.00835,67530.0,67529.0,0.885422]
[1721697243798,0.07095,67530.0,67529.0,0.840422]
[1721697244602,0.15045,67530.0,67529.0,0.840422]
[1721697244780,0.15045,67530.0,67529.0,0.885422]
[1721697244985,0.15045,67530.0,67529.0,0.840422]
[1721697245988,0.15045,67530.0,67529.0,0.854422]
[1721697249102,0.15045,67530.0,67529.0,0.899422]
[1721697249578,0.07405,67530.0,67529.0,0.899422]
[1721697249784,0.07405,67530.0,67529.0,0.885422]
[1721697250198,0.07405,67530.0,67529.0,0.854422]
[1721697250405,0.07405,67530.0,67529.0,1.21283387]
[1721697250406,0.00835,67530.0,67529.0,1.21283387]
[1721697250606,0.00835,67530.0,67529.0,1.195591]
[1721697250806,0.15295,67530.0,67529.0,1.195591]
[1721697251004,0.15295,67530.0,67529.0,1.150591]
[1721697251207,0.15295,67530.0,67529.0,0.840422]
[1721697251574,0.15295,67530.0,67529.0,0.544253]
[1721697252576,0.15295,67530.0,67529.0,0.558253]
[1721697253123,0.15295,67530.0,67529.0,0.572253]
[1721697254446,0.15295,67530.0,67529.0,0.868422]
[1721697254855,0.15295,67530.0,67529.0,0.572253]
[1721697255486,0.15295,67530.0,67529.0,0.840422]
[1721697255698,0.15295,67530.0,67529.0,0.544253]
[1721697255901,0.15295,67530.0,67529.0,0.558253]
[1721697256107,0.15295,67530.0,67529.0,0.854422]
[1721697256509,0.15295,67530.0,67529.0,0.868422]
[1721697256721,0.15295,67530.0,67529.0,0.840422]
[1721697256918,0.15295,67530.0,67529.0,0.544253]
[1721697257118,0.15295,67530.0,67529.0,0.558253]
[1721697258102,0.15295,67530.0,67529.0,0.854422]
[1721697258812,0.15295,67530.0,67529.0,0.558253]
[1721697260195,0.15295,67530.0,67529.0,0.262084]
[1721697261080,0.15295,67530.0,67529.0,0.558253]
[1721697261330,0.75643916,67530.0,67529.0,0.014]
[1721697262439,1.08362383,67530.0,67529.0,0.014]
[1721697262645,1.08362383,67530.0,67513.0,0.148118]
[1721697262646,0.005,67523.0,67513.0,0.148118]
[1721697262771,0.005,67523.0,67508.0,0.045]
[1721697262772,0.064,67519.0,67515.0,0.148114]
[1721697262975,0.0805,67518.0,67514.0,0.148117]
[1721697263176,0.0805,67518.0,67508.0,0.1216]
[1721697263177,0.0805,67518.0,67508.0,0.05403876]
[1721697263378,0.0805,67518.0,67514.0,0.148115]
[1721697263577,0.002794,67517.0,67515.0,0.148115]
[1721697263786,0.0805,67518.0,67514.0,0.148117]
[1721697264263,0.0805,67518.0,67514.0,0.014]
[1721697264599,0.148117,67514.0,67507.0,0.296262]
[1721697264803,0.1445,67515.0,67505.0,0.045]
[1721697264804,0.292615,67515.0,67505.0,0.045]
[1721697265007,0.292615,67515.0,67510.0,0.148126]
[1721697265215,0.1445,67515.0,67512.0,0.148119]
[1721697265369,0.1445,67515.0,67510.0,0.296252]
[1721697265370,0.1445,67515.0,67511.0,0.296246]
[1721697265573,0.1445,67515.0,67512.0,0.14812]
[1721697265772,0.1445,67515.0,67513.0,0.148119]
[1721697265979,0.1445,67515.0,67511.0,0.296246]
[1721697266198,0.1445,67515.0,67512.0,0.248121]
[1721697267099,0.1445,67515.0,67512.0,0.1]
[1721697267244,0.1445,67515.0,67512.0,0.148121]
[1721697267886,0.1445,67515.0,67513.0,0.148119]
[1721697268274,0.1445,67515.0,67512.0,0.162121]
[1721697269289,0.1445,67515.0,67512.0,0.014]
[1721697270144,0.292616,67515.0,67512.0,0.014]
[1721697270287,0.1445,67515.0,67512.0,0.014]
[1721697270888,0.292615,67515.0,67512.0,0.014]
[1721697271172,0.1445,67515.0,67512.0,0.014]
[1721697271791,0.1445,67515.0,67512.0,0.162121]
[1721697273406,0.1445,67515.0,67513.0,0.148118]
[1721697274752,0.1445,67515.0,67513.0,0.148119]
[1721697275690,0.1445,67515.0,67514.0,0.148117]
[1721697276111,0.1445,67515.0,67513.0,0.162118]
[1721697276532,0.1445,67515.0,67514.0,0.148117]
[1721697276941,0.1445,67515.0,67514.0,0.458351]
[1721697277860,0.1445,67515.0,67514.0,0.444351]
[1721697278657,0.1445,67515.0,67514.0,0.740585]
[1721697279070,0.1445,67515.0,67514.0,0.444351]
[1721697279889,0.1445,67515.0,67514.0,0.458351]
[1721697280115,0.1445,67515.0,67514.0,0.444351]
[1721697280519,0.1445,67515.0,67514.0,0.458351]
[1721697280724,0.1445,67515.0,67514.0,0.444351]
[1721697280928,0.1445,67515.0,67514.0,0.148117]
[1721697281135,0.1445,67515.0,67514.0,0.162117]
[1721697281337,0.1445,67515.0,67514.0,0.458351]
[1721697281970,0.1445,67515.0,67514.0,0.162117]
[1721697282356,0.1445,67515.0,67514.0,0.148117]
[1721697282494,0.1445,67515.0,67514.0,0.444351]
[1721697282727,0.1445,67515.0,67514.0,0.458351]
[1721697282924,0.1445,67515.0,67514.0,0.444351]
[1721697283351,0.1445,67515.0,67514.0,0.458351]
[1721697283510,0.1445,67515.0,67514.0,0.444351]
[1721697283916,0.1445,67515.0,67514.0,0.458351]
[1721697284340,0.1445,67515.0,67514.0,0.444351]
[1721697284743,0.39508019,67524.0,67521.0,0.148102]
[1721697284744,0.04408604,67524.0,67521.0,0.148102]
[1721697284988,0.04408604,67524.0,67517.0,0.296218]
[1721697284989,0.33507904,67525.0,67520.0,0.148104]
[1721697285230,0.33507904,67525.0,67516.0,0.296225]
[1721697285440,0.33507904,67525.0,67520.0,0.148103]
[1721697285612,0.33507904,67525.0,67521.0,0.148101]
[1721697285613,0.18698604,67525.0,67521.0,0.148101]
[1721697285763,0.18698604,67525.0,67522.0,0.148098]
[1721697286182,0.04408604,67524.0,67522.0,0.148098]
[1721697286405,0.1429,67525.0,67522.0,0.148098]
[1721697286406,0.18698604,67525.0,67522.0,0.148098]
[1721697286606,0.04408604,67524.0,67522.0,0.148098]
[1721697286807,0.1429,67525.0,67522.0,0.148098]
[1721697287009,0.04409389,67524.0,67523.0,0.444292]
[1721697287167,0.1429,67525.0,67522.0,0.014]
[1721697287168,0.1429,67525.0,67524.0,0.444285]
[1721697288215,0.1429,67525.0,67524.0,0.458285]
[1721697288617,0.1429,67525.0,67524.0,0.754475]
[1721697289274,0.1429,67525.0,67524.0,0.014]
[1721697290007,0.290993,67525.0,67524.0,0.014]
[1721697291068,0.1429,67525.0,67524.0,0.014]
[1721697291958,0.1429,67525.0,67524.0,0.458285]
[1721697292170,0.1438,67528.0,67527.0,0.148088]
[1721697292583,0.1438,67528.0,67527.0,0.444265]
[1721697293425,0.1438,67528.0,67527.0,0.458265]
[1721697294366,0.1438,67528.0,67527.0,0.754442]
[1721697294565,0.00835,67530.0,67529.0,0.740422]
[1721697295378,0.00835,67530.0,67529.0,1.081591]
[1721697295599,0.00835,67530.0,67529.0,1.09883387]
[1721697296178,0.00835,67530.0,67529.0,1.19883387]
[1721697296383,0.00835,67530.0,67529.0,1.21283387]
[1721697296997,0.00835,67530.0,67529.0,1.52300287]
[1721697297548,0.00835,67530.0,67529.0,1.22683387]
[1721697297760,0.00835,67530.0,67529.0,1.209591]
[1721697297933,0.00835,67530.0,67529.0,1.22683387]
[1721697298400,0.00835,67530.0,67529.0,1.164591]
[1721697298815,0.00835,67530.0,67529.0,0.868422]
[1721697300274,0.00835,67530.0,67529.0,1.209591]
[1721697300475,0.00835,67530.0,67529.0,1.22683387]
[1721697300683,0.00835,67530.0,67529.0,0.868422]
[1721697300919,0.15375,67530.0,67529.0,0.128]
[1721697301135,0.15375,67530.0,67529.0,0.028]
[1721697301347,0.15375,67530.0,67529.0,0.472253]
[1721697301553,0.15375,67530.0,67529.0,0.768422]
[1721697301554,0.00835,67530.0,67529.0,0.768422]
[1721697301765,0.00835,67530.0,67529.0,1.064591]
[1721697301975,0.00835,67530.0,67529.0,1.83877187]
[1721697302182,0.00835,67530.0,67529.0,1.74194682]
[1721697302599,0.00084,67531.0,67530.0,1.51458087]
[1721697302802,0.00835,67535.0,67530.0,1.51458087]
[1721697302803,0.00835,67535.0,67534.0,0.32991587]
[1721697303022,0.00835,67535.0,67534.0,2.02946773]
[1721697303237,0.00835,67540.0,67534.0,2.02946773]
[1721697303238,0.00835,67540.0,67538.0,1.09869387]
[1721697303441,0.002,67559.0,67549.0,1.11364487]
[1721697303646,0.002,67559.0,67558.0,0.19302]
[1721697303855,0.002,67559.0,67558.0,0.885102]
[1721697304088,0.002,67559.0,67558.0,1.181143]
[1721697304490,0.002,67559.0,67558.0,1.49442687]
[1721697304694,0.002,67559.0,67558.0,1.80562687]
[1721697304917,0.002,67559.0,67558.0,1.82862687]
[1721697305133,0.002,67559.0,67558.0,2.12466787]
[1721697305373,0.00835,67562.0,67561.0,0.06224287]
[1721697305594,0.00835,67567.0,67566.0,0.50625187]
[1721697305797,0.00835,67567.0,67566.0,1.80546987]
[1721697306207,0.00835,67567.0,67566.0,1.743227]
[1721697306859,0.00835,67567.0,67566.0,1.81946987]
[1721697307059,0.00835,67567.0,67566.0,1.757227]
[1721697307266,0.00835,67567.0,67566.0,1.80546987]
[1721697307475,0.00835,67567.0,67566.0,1.780227]
[1721697307682,0.00835,67567.0,67566.0,1.52346387]
[1721697307912,0.00835,67567.0,67566.0,0.854015]
[1721697308120,0.00835,67567.0,67566.0,0.114]
[1721697308322,0.00835,67567.0,67566.0,0.458009]
[1721697308534,0.00835,67567.0,67566.0,0.558009]
[1721697308802,0.00835,67567.0,67566.0,0.248003]
[1721697309067,0.00835,67567.0,67566.0,0.262003]
[1721697309287,0.00835,67567.0,67566.0,0.544009]
[1721697309697,0.00835,67567.0,67566.0,0.262003]
[1721697309900,0.00835,67567.0,67566.0,0.544009]
[1721697310320,0.00835,67567.0,67566.0,0.558009]
[1721697310754,0.00835,67567.0,67566.0,0.854015]
[1721697310948,0.00835,67567.0,67566.0,0.558009]
[1721697311276,0.00835,67567.0,67566.0,0.544009]
[1721697311487,0.00835,67567.0,67566.0,0.840015]
[1721697312228,0.00835,67567.0,67566.0,0.885015]
[1721697312433,0.00835,67567.0,67566.0,0.899015]
[1721697312631,0.00835,67567.0,67566.0,0.885015]
[1721697313055,0.00835,67567.0,67566.0,0.91625787]
[1721697313260,0.00835,67567.0,67566.0,1.33186387]
[1721697313623,0.00835,67567.0,67566.0,1.34586387]
[1721697314422,0.00835,67567.0,67566.0,1.31786387]
[1721697314616,0.00835,67567.0,67566.0,0.1]
[1721697314767,0.00835,67567.0,67566.0,0.148003]
[1721697314768,0.07135,67567.0,67566.0,0.148003]
[1721697314970,0.07135,67567.0,67566.0,0.248003]
[1721697315198,0.07135,67567.0,67566.0,0.1]
[1721697315407,0.515353,67567.0,67566.0,0.1]
[1721697315569,0.148008,67564.0,67555.0,0.296051]
[1721697315769,0.148008,67564.0,67553.0,0.045]
[1721697315770,0.07348942,67565.0,67557.0,0.296042]
[1721697315975,0.07348942,67565.0,67564.0,0.148007]
[1721697316677,0.07348942,67565.0,67561.0,0.148013]
[1721697317131,0.59204,67563.0,67562.0,0.1]
[1721697317439,0.59204,67563.0,67545.0,0.045]
[1721697317440,0.296031,67561.0,67545.0,0.045]
[1721697317656,0.002794,67558.0,67553.0,0.14803]
[1721697317853,0.002794,67558.0,67551.0,0.296071]
[1721697318083,0.148021,67558.0,67553.0,0.148031]
[1721697318284,0.296031,67561.0,67549.0,0.29608]
[1721697318285,0.148019,67559.0,67554.0,0.148029]
[1721697318532,0.002794,67560.0,67555.0,0.148027]
[1721697318533,0.03275713,67560.0,67555.0,0.148027]
[1721697318746,0.148018,67560.0,67555.0,0.148027]
[1721697318917,0.22151142,67558.0,67552.0,0.148032]
[1721697319149,0.25426855,67558.0,67553.0,0.24803]
[1721697319354,0.07348942,67558.0,67553.0,0.24803]
[1721697319729,0.22151142,67558.0,67553.0,0.24803]
[1721697320772,0.148013,67562.0,67555.0,0.296052]
[1721697320984,0.148013,67562.0,67557.0,0.148021]
[1721697321186,0.0662,67563.0,67556.0,0.39605]
[1721697321518,0.002794,67562.0,67558.0,0.14802]
[1721697321726,0.21421,67563.0,67558.0,0.14802]
[1721697321944,0.0712,67563.0,67556.0,0.248023]
[1721697322181,0.0662,67563.0,67562.0,0.444036]
[1721697324732,0.0662,67563.0,67562.0,0.75406]
[1721697324953,0.00835,67567.0,67562.0,0.75406]
[1721697324954,0.00835,67567.0,67566.0,0.740015]
[1721697326047,0.00835,67567.0,67566.0,1.081021]
[1721697326266,0.00835,67567.0,67566.0,1.49426987]
[1721697326467,0.00835,67567.0,67566.0,1.62786987]
[1721697327095,0.00835,67567.0,67566.0,1.65086987]
[1721697327299,0.00835,67567.0,67566.0,1.63686987]
[1721697327709,0.00835,67567.0,67566.0,1.65086987]
[1721697327913,0.00835,67567.0,67566.0,1.63686987]
[1721697328325,0.00835,67567.0,67566.0,1.500027]
[1721697328567,0.00835,67567.0,67566.0,1.19826387]
[1721697329390,0.00835,67567.0,67566.0,1.51726987]
[1721697330056,0.00835,67567.0,67566.0,1.53126987]
[1721697330677,0.00835,67567.0,67566.0,1.82727587]
[1721697330855,0.00835,67567.0,67566.0,2.09389578]
[1721697331515,0.00835,67567.0,67566.0,2.38990178]
[1721697331729,0.01034,67569.0,67566.0,2.38990178]
[1721697331730,0.01034,67569.0,67568.0,1.80983187]
[1721697331945,0.01034,67569.0,67568.0,2.07985178]
[1721697331946,1e-06,67569.0,67568.0,2.07985178]
[1721697332150,1e-06,67569.0,67568.0,2.44286778]
[1721697332363,0.00834,67573.0,67571.0,1.88175487]
[1721697332364,1e-06,67572.0,67571.0,1.88175487]
[1721697332568,1e-06,67573.0,67572.0,0.21023287]
[1721697332767,1e-06,67573.0,67572.0,1.49081078]
[1721697332899,1e-06,67573.0,67572.0,2.37875078]
[1721697333105,1e-06,67573.0,67572.0,2.4431195]
[1721697333935,1e-06,67573.0,67572.0,2.4571195]
[1721697334491,0.00834,67583.0,67578.0,1.74558987]
[1721697334616,0.00834,67583.0,67578.0,2.5345505]
[1721697335010,1e-06,67589.0,67588.0,0.06224287]
[1721697335138,1e-06,67589.0,67588.0,1.14063778]
[1721697335344,1e-06,67589.0,67588.0,1.68543787]
[1721697335545,1e-06,67589.0,67588.0,1.70843787]
[1721697337029,1e-06,67589.0,67588.0,1.72243787]
[1721697339154,1e-06,67589.0,67588.0,1.149685]
[1721697339373,1e-06,67589.0,67588.0,1.194685]
[1721697339575,1e-06,67589.0,67588.0,1.149685]
[1721697339814,1e-06,67589.0,67588.0,1.194685]
[1721697340019,1e-06,67589.0,67588.0,1.21192787]
[1721697340188,1e-06,67589.0,67588.0,1.49383787]
[1721697340590,1e-06,67589.0,67588.0,1.490595]
[1721697340822,1e-06,67589.0,67588.0,1.476595]
[1721697341162,1e-06,67589.0,67588.0,1.490595]
[1721697342501,1e-06,67589.0,67588.0,1.50783787]
[1721697343247,1e-06,67589.0,67588.0,1.490595]
[1721697343489,1e-06,67589.0,67588.0,1.50783787]
[1721697345336,1e-06,67589.0,67588.0,1.65043787]
[1721697346094,1e-06,67589.0,67588.0,1.94634787]
[1721697346581,1e-06,67589.0,67588.0,1.93234787]
[1721697346813,1e-06,67589.0,67588.0,2.07936778]
[1721697347285,1e-06,67589.0,67588.0,2.09336778]
[1721697347550,1e-06,67589.0,67588.0,2.07936778]
[1721697348049,1e-06,67589.0,67588.0,2.09336778]
[1721697348319,0.002,67599.0,67592.0,1.68965387]
[1721697348568,0.002,67599.0,67592.0,1.95967378]
[1721697349974,0.002,67599.0,67592.0,1.97367378]
[1721697350996,0.002794,67616.0,67608.0,0.06224287]
[1721697350997,0.002,67609.0,67608.0,0.06224287]
[1721697351285,0.002,67609.0,67608.0,1.41644187]
[1721697351538,0.002,67609.0,67608.0,1.95928378]
[1721697352847,0.002,67609.0,67608.0,1.51644187]
[1721697353659,0.002,67609.0,67608.0,1.53044187]
[1721697353875,0.002,67609.0,67608.0,1.431199]
[1721697354083,0.0664,67609.0,67608.0,1.476199]
[1721697354294,0.0664,67609.0,67608.0,1.50744187]
[1721697354713,0.0664,67609.0,67608.0,1.53044187]
[1721697354918,0.002,67609.0,67608.0,1.53044187]
[1721697355745,0.002,67609.0,67608.0,1.51644187]
[1721697355950,0.002,67609.0,67608.0,1.81226387]
[1721697356160,0.002,67609.0,67608.0,1.65004187]
[1721697356380,0.002,67609.0,67608.0,1.63604187]
[1721697357216,0.002,67609.0,67608.0,1.93186387]
[1721697357420,0.002,67609.0,67608.0,1.94586387]
[1721697357633,0.002,67609.0,67608.0,1.93186387]
[1721697357834,0.002,67609.0,67608.0,2.07888378]
[1721697358245,0.002,67609.0,67608.0,1.78306178]
[1721697358459,0.002,67609.0,67608.0,1.66346178]
[1721697358893,0.002,67609.0,67608.0,1.95928378]
[1721697359097,0.002,67609.0,67608.0,1.97328378]
[1721697359302,0.002,67609.0,67608.0,1.53044187]
[1721697360706,0.002,67609.0,67608.0,1.468199]
[1721697360943,0.002,67609.0,67608.0,1.53044187]
[1721697361380,0.002,67609.0,67608.0,1.67746178]
[1721697361602,0.002,67609.0,67608.0,1.97328378]
[1721697361820,0.002,67609.0,67608.0,2.04894722]
[1721697362042,0.002,67609.0,67608.0,1.75312522]
[1721697362220,0.002,67609.0,67608.0,1.67746178]
[1721697362455,0.002,67609.0,67608.0,1.454199]
[1721697362630,0.1441,67609.0,67608.0,1.51644187]
[1721697362861,0.1441,67609.0,67608.0,1.53044187]
[1721697363053,0.1441,67609.0,67608.0,1.454199]
[1721697363252,0.1441,67609.0,67608.0,1.51644187]
[1721697363481,0.1441,67609.0,67608.0,1.53044187]
[1721697363862,0.1441,67609.0,67608.0,1.51644187]
[1721697364117,0.1441,67609.0,67608.0,1.53044187]
[1721697364550,0.1441,67609.0,67608.0,1.149377]
[1721697364753,0.1441,67609.0,67608.0,1.049377]
[1721697365353,0.14494,67609.0,67608.0,1.094377]
[1721697365562,0.14494,67609.0,67608.0,1.080377]
[1721697365765,0.14494,67609.0,67608.0,1.049377]
[1721697365967,0.14494,67609.0,67608.0,1.135377]
[1721697366382,0.14494,67609.0,67608.0,0.853555]
[1721697366801,0.14494,67609.0,67608.0,0.557733]
[1721697367014,0.14494,67609.0,67608.0,0.571733]
[1721697367646,0.14494,67609.0,67608.0,0.275911]
[1721697367845,0.14494,67609.0,67608.0,0.175911]
[1721697368094,0.14494,67609.0,67608.0,0.471733]
[1721697368559,0.14494,67609.0,67608.0,0.175911]
[1721697368774,0.14494,67609.0,67608.0,0.147911]
[1721697369206,0.14494,67609.0,67608.0,0.457733]
[1721697369612,0.14494,67609.0,67608.0,0.161911]
[1721697369810,0.17769713,67609.0,67608.0,0.014]
[1721697369938,0.14494,67609.0,67608.0,0.161911]
[1721697370346,0.14494,67609.0,67608.0,0.147911]
[1721697370552,0.14494,67609.0,67600.0,0.395857]
[1721697370553,0.03275713,67606.0,67600.0,0.395857]
[1721697370753,0.1424,67604.0,67602.0,0.147924]
[1721697370971,0.1424,67604.0,67595.0,0.295879]
[1721697370972,0.18067713,67604.0,67595.0,0.295879]
[1721697371178,0.1424,67598.0,67586.0,0.045]
[1721697371388,0.0643,67595.0,67581.0,0.48593655]
[1721697371715,0.081,67596.0,67590.0,0.14795]
[1721697371716,0.081,67591.0,67590.0,0.14795]
[1721697371926,0.081,67591.0,67590.0,0.739752]
[1721697372134,0.081,67591.0,67590.0,1.080653]
[1721697372259,0.081,67591.0,67590.0,1.09789587]
[1721697372468,0.081,67591.0,67590.0,1.035653]
[1721697372866,0.081,67591.0,67590.0,1.049653]
[1721697373270,0.081,67591.0,67590.0,0.457851]
[1721697373495,0.081,67591.0,67590.0,0.557851]
[1721697373697,0.081,67591.0,67590.0,0.853752]
[1721697373935,0.081,67591.0,67590.0,1.149653]
[1721697374604,0.081,67591.0,67590.0,0.853752]
[1721697375878,0.081,67591.0,67590.0,0.26195]
[1721697376085,0.081,67591.0,67590.0,0.114]
[1721697376086,0.1442,67591.0,67590.0,0.114]
[1721697376291,0.1442,67591.0,67590.0,0.014]
[1721697376499,0.32990513,67591.0,67590.0,0.014]
[1721697377139,0.97169913,67591.0,67590.0,0.014]
[1721697377349,1.26759613,67591.0,67590.0,0.014]
[1721697377550,0.97169913,67591.0,67590.0,0.014]
[1721697378574,0.347148,67591.0,67590.0,0.014]
[1721697378781,0.1492,67591.0,67590.0,0.014]
[1721697379439,0.32990513,67591.0,67590.0,0.014]
[1721697379657,0.1442,67591.0,67590.0,0.014]
[1721697380105,0.1492,67591.0,67590.0,0.014]
[1721697380315,0.297148,67591.0,67590.0,0.014]
[1721697380523,0.1492,67591.0,67590.0,0.014]
[1721697380732,0.1442,67591.0,67590.0,0.014]
[1721697381153,0.1492,67591.0,67590.0,0.014]
[1721697381830,0.1442,67591.0,67590.0,0.014]
[1721697382036,0.1492,67591.0,67590.0,0.014]
[1721697382241,0.1442,67591.0,67590.0,0.16195]
[1721697382514,0.1492,67591.0,67590.0,0.014]
[1721697383189,0.32990513,67591.0,67590.0,0.014]
[1721697383399,0.1492,67591.0,67590.0,0.014]
[1721697383603,0.32990513,67591.0,67590.0,0.014]
[1721697383816,0.1492,67591.0,67590.0,0.014]
[1721697384422,0.1442,67591.0,67590.0,0.014]
[1721697385051,0.1492,67591.0,67590.0,0.014]
[1721697385282,0.1442,67591.0,67590.0,0.16195]
[1721697387158,0.1442,67591.0,67590.0,1.049653]
[1721697387368,0.1442,67591.0,67590.0,0.753752]
[1721697388612,0.1492,67591.0,67590.0,0.014]
[1721697388818,0.347148,67591.0,67590.0,0.014]
[1721697389242,0.643045,67591.0,67590.0,0.014]
[1721697389461,0.348553,67589.0,67588.0,0.000924]
[1721697389667,0.23335713,67589.0,67588.0,0.000924]
[1721697389875,0.2006,67589.0,67588.0,0.000924]
[1721697390700,0.67721613,67589.0,67588.0,0.000924]
[1721697390920,0.67721613,67589.0,67588.0,0.014924]
[1721697391143,1.75653413,67589.0,67588.0,0.000924]
[1721697391351,0.53168013,67579.0,67578.0,7.43e-05]
[1721697391561,1.04711855,67579.0,67578.0,7.43e-05]
[1721697392389,1.01436142,67579.0,67578.0,7.43e-05]
[1721697392597,1.04711855,67579.0,67578.0,7.43e-05]
[1721697393026,1.01436142,67579.0,67578.0,7.43e-05]
[1721697393231,1.04711855,67579.0,67578.0,7.43e-05]
[1721697393645,0.75116955,67579.0,67578.0,0.0140743]
[1721697393852,0.71841242,67579.0,67578.0,0.0140743]
[1721697394067,0.75116955,67579.0,67578.0,7.43e-05]
[1721697394282,1.04711855,67579.0,67578.0,0.0140743]
[1721697394507,1.34306755,67579.0,67578.0,0.0140743]
[1721697394944,0.96798413,67565.0,67556.0,0.148024]
[1721697395151,0.96798413,67565.0,67554.0,0.296056]
[1721697395152,0.22795713,67565.0,67554.0,0.296056]
[1721697395381,0.67197313,67565.0,67559.0,0.148018]
[1721697395611,0.67197313,67565.0,67557.0,0.148022]
[1721697395821,0.1952,67565.0,67556.0,0.296047]
[1721697396034,0.22795713,67565.0,67562.0,0.148011]
[1721697396246,0.22795713,67565.0,67558.0,0.296037]
[1721697396247,0.37596213,67565.0,67560.0,0.148015]
[1721697396897,0.37596213,67565.0,67558.0,0.296037]
[1721697397105,0.37596213,67565.0,67559.0,0.148017]
[1721697397315,0.37696213,67565.0,67564.0,0.014924]
[1721697397540,1.04147355,67565.0,67564.0,0.000924]
[1721697397968,0.74546255,67565.0,67564.0,0.000924]
[1721697399066,0.74646255,67565.0,67564.0,0.007924]
[1721697399275,0.74724161,67565.0,67564.0,0.000924]
[1721697399696,0.74824161,67565.0,67564.0,0.007924]
[1721697399900,0.74724161,67565.0,67564.0,0.000924]
[1721697400100,1.04325261,67565.0,67564.0,0.000924]
[1721697400304,1.04425261,67565.0,67564.0,0.006924]
[1721697400932,0.74824161,67565.0,67564.0,0.006924]
[1721697401145,1.04425261,67565.0,67564.0,0.006924]
[1721697402641,1.34026361,67565.0,67564.0,0.006924]
[1721697403557,1.74065274,67565.0,67564.0,0.006924]
[1721697403769,1.44463228,67565.0,67564.0,0.006924]
[1721697405506,1.44363228,67565.0,67564.0,0.000924]
[1721697405704,1.44463228,67565.0,67564.0,0.003924]
[1721697406154,0.77912086,67565.0,67564.0,0.003924]
[1721697406551,1.07513186,67565.0,67564.0,0.003924]
[1721697406792,0.97076319,67565.0,67564.0,0.003924]
[1721697407007,1.26677419,67565.0,67564.0,0.003924]
[1721697407229,1.07605986,67565.0,67564.0,0.003924]
[1721697407441,1.07605878,67565.0,67564.0,0.003924]